fUST/lending_fUST_20240917
["ID","MTS","AMOUNT","RATE_DAILY","PERIOD"]
[338334694,1726507843832,-1000.0,0.00018998,2]
[338334695,1726507843842,-1000.0,0.00018998,2]
[338334696,1726507843852,-1000.0,0.00018998,2]
[338334697,1726507843861,-1000.0,0.00018998,2]
[338334698,1726507843871,-1000.0,0.00018998,2]
[338334699,1726507843881,-316.88142378,0.00018998,2]
[338334700,1726507843890,-2852.03487597,0.00019,5]
[338334701,1726507843899,-12904.33478768,0.00019,2]
[338334702,1726507843908,-271.01454298,0.00019,7]
[338334703,1726507843918,-20000.0,0.00019,30]
[338334704,1726507843929,-2205.6234377,0.00019,3]
[338334705,1726507843939,-1000.0,0.00019,19]
[338334706,1726507843949,-151.0,0.00019,2]
[338334707,1726507843959,-151.0,0.00019,2]
[338334708,1726507843970,-154.73534,0.00019,2]
[338334709,1726507843980,-3000.0,0.00019,2]
[338334710,1726507843990,-151.0,0.00019,2]
[338334711,1726507844001,-1776.715909,0.00019,2]
[338334712,1726507844012,-575.104493,0.00019,2]
[338334713,1726507844027,-575.104493,0.00019,2]
[338334714,1726507844037,-1776.715909,0.00019,2]
[338334715,1726507844048,-196.436064,0.00019,2]
[338334716,1726507844058,-690.680572,0.00019,2]
[338334717,1726507844067,-690.680572,0.00019,2]
[338334718,1726507844077,-151.0,0.00019,2]
[338334719,1726507844086,-992.956464,0.00019,2]
[338334720,1726507844095,-992.956464,0.00019,2]
[338334721,1726507844104,-288.303052,0.00019,2]
[338334722,1726507844113,-288.303052,0.00019,2]
[338334723,1726507844123,-1672.693884,0.00019,2]
[338334724,1726507844132,-1672.693884,0.00019,2]
[338334725,1726507844143,-1000.0,0.00019,2]
[338334726,1726507844152,-151.0,0.00019004,2]
[338334727,1726507844162,-151.0,0.0001901,2]
[338334728,1726507844172,-175.1851,0.0001901,2]
[338334729,1726507844181,-175.1851,0.0001901,2]
[338334730,1726507844191,-151.0,0.0001901,2]
[338334731,1726507844201,-151.0,0.0001901,2]
[338334732,1726507844210,-175.183051,0.0001901,2]
[338334733,1726507844220,-175.183051,0.0001901,2]
[338334734,1726507844230,-151.0,0.0001901,2]
[338334735,1726507844239,-151.0,0.0001901,2]
[338334736,1726507844249,-151.0,0.0001901,2]
[338334737,1726507844258,-151.0,0.0001901,2]
[338334738,1726507844268,-1330.806637,0.0001901,2]
[338334739,1726507844279,-1330.806637,0.0001901,2]
[338334740,1726507844292,-3000.0,0.0001901,2]
[338334741,1726507844302,-151.0,0.0001901,2]
[338334742,1726507844312,-1776.715909,0.0001901,2]
[338334743,1726507844322,-1776.715909,0.0001901,2]
[338334744,1726507844331,-228.608192,0.0001901,2]
[338334745,1726507844342,-228.608192,0.0001901,2]
[338334746,1726507844351,-151.0,0.0001901,2]
[338334747,1726507844361,-249.748914,0.0001901,2]
[338334748,1726507844371,-151.0,0.0001901,2]
[338334749,1726507844380,-151.0,0.0001901,2]
[338334750,1726507844389,-171.137768,0.0001901,2]
[338334751,1726507844398,-171.137768,0.0001901,2]
[338334752,1726507844408,-334.753809,0.0001901,2]
[338334753,1726507844418,-334.753809,0.0001901,2]
[338334754,1726507844427,-361.459464,0.0001901,2]
[338334755,1726507844440,-361.459464,0.0001901,2]
[338334756,1726507844450,-151.0,0.0001901,2]
[338334757,1726507844459,-1422.048878,0.0001901,2]
[338334758,1726507844469,-1422.048878,0.0001901,2]
[338334759,1726507844479,-151.0,0.0001901,2]
[338334760,1726507844488,-154.985555,0.0001901,2]
[338334761,1726507844498,-151.0,0.0001902,2]
[338334762,1726507844507,-3000.0,0.0001902,2]
[338334763,1726507844517,-3000.0,0.0001903,2]
[338334764,1726507844530,-3000.0,0.0001904,2]
[338334765,1726507844540,-3000.0,0.0001905,2]
[338334766,1726507844551,-151.0,0.0001906,2]
[338334767,1726507844561,-151.0,0.0001906,2]
[338334768,1726507844571,-151.0,0.0001906,2]
[338334769,1726507844581,-151.0,0.0001906,2]
[338334770,1726507844591,-3000.0,0.0001906,2]
[338334771,1726507844600,-575.104493,0.0001906,2]
[338334772,1726507844610,-575.104493,0.0001906,2]
[338334773,1726507844619,-151.0,0.0001907,2]
[338334774,1726507844629,-175.1851,0.0001907,2]
[338334775,1726507844638,-175.1851,0.0001907,2]
[338334776,1726507844648,-151.0,0.0001907,2]
[338334777,1726507844658,-151.0,0.0001907,2]
[338334778,1726507844667,-151.0,0.0001907,2]
[338334779,1726507844677,-151.0,0.0001907,2]
[338334780,1726507844686,-151.893092,0.0001907,2]
[338334781,1726507844695,-151.0,0.0001907,2]
[338334782,1726507844705,-175.183051,0.0001907,2]
[338334783,1726507844714,-175.183051,0.0001907,2]
[338334784,1726507844724,-151.0,0.0001907,2]
[338334785,1726507844734,-151.0,0.0001907,2]
[338334786,1726507844744,-151.0,0.0001907,2]
[338334787,1726507844754,-299.264317,0.0001907,2]
[338334788,1726507844764,-1330.806637,0.0001907,2]
[338334789,1726507844776,-1330.806637,0.0001907,2]
[338334790,1726507844788,-151.0,0.0001907,2]
[338334791,1726507844797,-200.65462,0.0001907,2]
[338334792,1726507844807,-3000.0,0.0001907,2]
[338334793,1726507844816,-157.516704,0.0001907,2]
[338334794,1726507844826,-1776.715909,0.0001907,2]
[338334795,1726507844835,-575.104493,0.0001907,2]
[338334796,1726507844845,-575.104493,0.0001907,2]
[338334797,1726507844854,-1776.715909,0.0001907,2]
[338334798,1726507844863,-151.0,0.0001908,2]
[338334799,1726507844873,-3000.0,0.0001908,2]
[338334800,1726507844882,-3000.0,0.0001909,2]
[338334801,1726507844892,-150.112235,0.000191,2]
[338334802,1726507844901,-151.0,0.000191,2]
[338334803,1726507844910,-150.112233,0.000191,2]
[338334804,1726507844920,-150.112233,0.000191,2]
[338334805,1726507844929,-175.1851,0.000191,2]
[338334806,1726507844938,-175.1851,0.000191,2]
[338334807,1726507844948,-151.0,0.000191,2]
[338334808,1726507844958,-151.0,0.000191,2]
[338334809,1726507844967,-152.952042,0.000191,2]
[338334810,1726507844977,-151.0,0.000191,2]
[338334811,1726507844987,-151.0,0.000191,2]
[338334812,1726507844997,-175.183051,0.000191,2]
[338334813,1726507845007,-175.183051,0.000191,2]
[338334814,1726507845017,-151.0,0.000191,2]
[338334815,1726507845030,-151.0,0.000191,2]
[338334816,1726507845041,-151.0,0.000191,2]
[338334817,1726507845051,-1330.806637,0.000191,2]
[338334818,1726507845060,-1330.806637,0.000191,2]
[338334819,1726507845069,-3000.0,0.000191,30]
[338334820,1726507845079,-3000.0,0.000191,2]
[338334821,1726507845088,-690.680572,0.000191,2]
[338334822,1726507845098,-690.680572,0.000191,2]
[338334823,1726507845108,-186.823537,0.000191,2]
[338334824,1726507845117,-992.956464,0.000191,2]
[338334825,1726507845127,-992.956454,0.000191,2]
[338334826,1726507845137,-914.0,0.000191,2]
[338334827,1726507845146,-288.303052,0.000191,2]
[338334828,1726507845156,-288.303054,0.000191,2]
[338334829,1726507845166,-1672.693884,0.000191,2]
[338334830,1726507845176,-1672.693884,0.000191,2]
[338334831,1726507845186,-244.1961,0.00019104,2]
[338334832,1726507845198,-3000.0,0.0001911,30]
[338334833,1726507845208,-3000.0,0.0001911,2]
[338334834,1726507845217,-1006.80621764,0.00019111,2]
[338334835,1726507845227,-3000.0,0.0001912,30]
[338334836,1726507845236,-3000.0,0.0001912,2]
[338334837,1726507845246,-228.608192,0.0001912,2]
[338334838,1726507845256,-228.608192,0.0001912,2]
[338334839,1726507845265,-151.0,0.0001912,2]
[338334840,1726507845279,-151.0,0.0001912,2]
[338334841,1726507845290,-151.0,0.0001912,2]
[338334842,1726507845300,-171.137768,0.0001912,2]
[338334843,1726507845309,-171.137768,0.0001912,2]
[338334844,1726507845319,-334.753809,0.0001912,2]
[338334845,1726507845328,-334.753809,0.0001912,2]
[338334846,1726507845338,-361.459464,0.0001912,2]
[338334847,1726507845347,-361.459464,0.0001912,2]
[338334848,1726507845356,-151.0,0.0001912,2]
[338334849,1726507845365,-1422.048878,0.0001912,2]
[338334850,1726507845376,-1422.048878,0.0001912,2]
[338334851,1726507845386,-151.0,0.0001912,2]
[338334852,1726507845395,-3000.0,0.0001913,30]
[338334853,1726507845405,-3000.0,0.0001913,2]
[338334854,1726507845414,-3000.0,0.0001914,30]
[338334855,1726507845423,-3000.0,0.0001914,2]
[338334856,1726507845433,-793.9123212,0.00019145,2]
[338334857,1726507845442,-3000.0,0.0001915,30]
[338334858,1726507845451,-3000.0,0.0001915,2]
[338334859,1726507845460,-151.0,0.0001916,2]
[338334860,1726507845469,-175.1851,0.0001916,2]
[338334861,1726507845478,-175.1851,0.0001916,2]
[338334862,1726507845488,-151.0,0.0001916,2]
[338334863,1726507845497,-195.948585,0.0001916,2]
[338334864,1726507845507,-151.0,0.0001916,2]
[338334865,1726507845516,-151.0,0.0001916,2]
[338334866,1726507845529,-175.183051,0.0001916,2]
[338334867,1726507845538,-175.183051,0.0001916,2]
[338334868,1726507845547,-151.0,0.0001916,2]
[338334869,1726507845557,-151.0,0.0001916,2]
[338334870,1726507845567,-1330.806637,0.0001916,2]
[338334871,1726507845576,-1330.806637,0.0001916,2]
[338334872,1726507845585,-3000.0,0.0001916,30]
[338334873,1726507845594,-3000.0,0.0001916,2]
[338334874,1726507845603,-1776.715909,0.0001916,2]
[338334878,1726507845749,-1776.715909,0.0001916,2]
[338334879,1726507845759,-151.0,0.0001917,2]
[338334880,1726507845768,-3000.0,0.0001917,30]
[338334882,1726507845780,-3000.0,0.0001917,2]
[338334884,1726507845792,-575.104493,0.0001917,2]
[338334885,1726507845801,-575.104493,0.0001917,2]
[338334887,1726507845810,-500.0,0.00019173,2]
[338334889,1726507845821,-358.84092384,0.00019173,2]
[338334890,1726507845830,-500.0,0.00019173,2]
[338334891,1726507845839,-500.0,0.00019173,2]
[338334892,1726507845848,-288.2482218,0.00019173,2]
[338334893,1726507845860,-500.0,0.00019173,2]
[338334894,1726507845870,-500.0,0.00019173,2]
[338334895,1726507845880,-456.14260723,0.00019173,2]
[338334896,1726507845889,-500.0,0.00019173,2]
[338334897,1726507845897,-500.0,0.00019173,2]
[338334898,1726507845906,-500.0,0.00019173,2]
[338334899,1726507845916,-500.0,0.00019173,2]
[338334901,1726507845927,-370.44203673,0.00019173,2]
[338334902,1726507845937,-172.62328094,0.00019173,2]
[338334903,1726507845947,-500.0,0.00019173,2]
[338334904,1726507845958,-562.43569413,0.00019173,2]
[338334905,1726507845967,-500.0,0.00019173,2]
[338334906,1726507845978,-151.0,0.00019173,2]
[338334908,1726507845987,-151.0,0.00019173,2]
[338334909,1726507845997,-175.1851,0.00019173,2]
[338334910,1726507846007,-175.1851,0.00019173,2]
[338334911,1726507846018,-151.0,0.00019173,2]
[338334912,1726507846030,-151.0,0.00019173,2]
[338334913,1726507846041,-151.0,0.00019173,2]
[338334914,1726507846051,-175.183051,0.00019173,2]
[338334915,1726507846063,-175.183051,0.00019173,2]
[338334916,1726507846073,-151.0,0.00019173,2]
[338334917,1726507846085,-208.895602,0.00019173,2]
[338334918,1726507846096,-1330.806637,0.00019173,2]
[338334919,1726507846105,-1330.806637,0.00019173,2]
[338334920,1726507846114,-151.0,0.00019173,2]
[338334921,1726507846123,-151.0,0.00019178,2]
[338334922,1726507846133,-151.0,0.00019178,2]
[338334923,1726507846143,-1000.0,0.00019178,2]
[338334924,1726507846154,-690.680572,0.00019178,2]
[338334925,1726507846165,-690.68057611,0.00019178,2]
[338334926,1726507846175,-1672.693884,0.00019178,2]
[338334927,1726507846184,-1672.693874,0.00019178,2]
[338334928,1726507846193,-169.721337,0.00019178,2]
[338334929,1726507846203,-169.696573,0.00019178,2]
[338334930,1726507846212,-151.0,0.00019178,2]
[338334931,1726507846221,-151.0,0.00019178,2]
[338334932,1726507846231,-151.0,0.00019178,2]
[338334933,1726507846240,-151.0,0.00019178,2]
[338334934,1726507846249,-151.0,0.00019178,2]
[338334935,1726507846258,-151.0,0.00019178,2]
[338334936,1726507846268,-151.0,0.00019178,2]
[338334937,1726507846284,-151.0,0.00019178,2]
[338334938,1726507846293,-151.0,0.00019178,2]
[338334939,1726507846302,-151.0,0.00019178,2]
[338334940,1726507846312,-151.0,0.00019178,2]
[338334941,1726507846321,-273.113108,0.00019178,2]
[338334942,1726507846331,-11271.542159,0.00019178,2]
[338334943,1726507846340,-348.02722,0.00019178,2]
[338334944,1726507846349,-348.02722,0.00019178,2]
[338334945,1726507846358,-348.02722,0.00019178,2]
[338334946,1726507846367,-348.02722,0.00019178,2]
[338334947,1726507846376,-348.02722,0.00019178,2]
[338334948,1726507846386,-348.02722,0.00019178,2]
[338334949,1726507846396,-348.02722,0.00019178,2]
[338334950,1726507846407,-348.02722,0.00019178,2]
[338334951,1726507846418,-348.02722,0.00019178,2]
[338334952,1726507846428,-348.02722,0.00019178,2]
[338334953,1726507846438,-348.02722,0.00019178,2]
[338334954,1726507846448,-348.02722,0.00019178,2]
[338334955,1726507846458,-348.02722,0.00019178,2]
[338334956,1726507846467,-348.02722,0.00019178,2]
[338334957,1726507846476,-348.02722,0.00019178,2]
[338334958,1726507846486,-348.02722,0.00019178,2]
[338334959,1726507846494,-348.02722,0.00019178,2]
[338334960,1726507846503,-348.02722,0.00019178,2]
[338334961,1726507846513,-348.02722,0.00019178,2]
[338334962,1726507846521,-348.027228,0.00019178,2]
[338334963,1726507846532,-3000.0,0.0001918,30]
[338334964,1726507846542,-3000.0,0.0001918,2]
[338334965,1726507846551,-228.608192,0.0001918,2]
[338334966,1726507846560,-228.608194,0.0001918,2]
[338334967,1726507846570,-151.0,0.0001918,2]
[338334968,1726507846578,-268.889697,0.0001918,2]
[338334969,1726507846587,-151.0,0.0001918,2]
[338334970,1726507846597,-171.137768,0.0001918,2]
[338334971,1726507846606,-171.137766,0.0001918,2]
[338334972,1726507846615,-334.753809,0.0001918,2]
[338334973,1726507846624,-334.753813,0.0001918,2]
[338334974,1726507846633,-361.459464,0.0001918,2]
[338334975,1726507846642,-361.459467,0.0001918,2]
[338334976,1726507846652,-151.0,0.0001918,2]
[338334977,1726507846662,-1422.048878,0.0001918,2]
[338334978,1726507846673,-1422.048872,0.0001918,2]
[338334979,1726507846683,-151.418214,0.0001918,2]
[338334980,1726507846694,-197.40713359,0.0001919,2]
[338334981,1726507846705,-156.710847,0.0001919,2]
[338334982,1726507846715,-175.1851,0.0001919,2]
[338334983,1726507846725,-175.1851,0.0001919,2]
[338334984,1726507846735,-151.0,0.0001919,2]
[338334985,1726507846745,-151.0,0.0001919,2]
[338334986,1726507846754,-151.0,0.0001919,2]
[338334987,1726507846765,-151.0,0.0001919,2]
[338334988,1726507846776,-151.0,0.0001919,2]
[338334989,1726507846790,-175.183051,0.0001919,2]
[338334990,1726507846800,-175.183051,0.0001919,2]
[338334991,1726507846809,-151.0,0.0001919,2]
[338334992,1726507846819,-1330.806637,0.0001919,2]
[338334993,1726507846829,-1330.806637,0.0001919,2]
[338334994,1726507846838,-3000.0,0.0001919,30]
[338334995,1726507846849,-3000.0,0.0001919,2]
[338334996,1726507846859,-1776.715909,0.0001919,2]
[338334997,1726507846868,-1776.715917,0.0001919,2]
[338334998,1726507846878,-4239.95768657,0.000192,5]
[338334999,1726507846887,-300.0,0.000192,2]
[338335000,1726507846896,-631770.9,0.000192,2]
[338335001,1726507846905,-150.112233,0.000192,2]
[338335002,1726507846914,-151.0,0.000192,2]
[338335003,1726507846924,-151.0,0.000192,2]
[338335004,1726507846933,-151.0,0.000192,2]
[338335005,1726507846942,-151.0,0.000192,2]
[338335006,1726507846951,-151.0,0.000192,2]
[338335007,1726507846962,-498.077456,0.000192,2]
[338335008,1726507846972,-498.077456,0.000192,2]
[338335009,1726507846981,-150.112233,0.000192,2]
[338335010,1726507846990,-150.112233,0.000192,2]
[338335011,1726507846999,-175.1851,0.000192,2]
[338335012,1726507847008,-175.1851,0.000192,2]
[338335013,1726507847017,-151.0,0.000192,2]
[338335014,1726507847028,-151.0,0.000192,2]
[338335015,1726507847037,-151.0,0.000192,2]
[338335016,1726507847046,-151.0,0.000192,2]
[338335017,1726507847056,-151.0,0.000192,2]
[338335018,1726507847065,-175.183051,0.000192,2]
[338335019,1726507847074,-175.183051,0.000192,2]
[338335020,1726507847083,-151.0,0.000192,2]
[338335021,1726507847093,-1330.806637,0.000192,2]
[338335022,1726507847103,-1330.806637,0.000192,2]
[338335023,1726507847113,-151.0,0.000192,2]
[338335024,1726507847125,-151.0,0.000192,2]
[338335025,1726507847135,-3000.0,0.000192,30]
[338335026,1726507847146,-3000.0,0.000192,2]
[338335027,1726507847156,-575.104493,0.000192,2]
[338335028,1726507847166,-575.1045,0.000192,2]
[338335029,1726507847177,-3000.0,0.0001921,30]
[338335030,1726507847187,-3000.0,0.0001921,2]
[338335031,1726507847197,-3000.0,0.0001922,30]
[338335032,1726507847209,-3000.0,0.0001922,2]
[338335033,1726507847219,-153.114606,0.0001923,2]
[338335034,1726507847229,-151.0,0.0001923,2]
[338335035,1726507847239,-498.077456,0.0001923,2]
[338335036,1726507847249,-498.077456,0.0001923,2]
[338335037,1726507847259,-3000.0,0.0001923,30]
[338335038,1726507847269,-3000.0,0.0001923,2]
[338335039,1726507847280,-3000.0,0.0001924,30]
[338335040,1726507847289,-3000.0,0.0001924,2]
[338335041,1726507847298,-3758.975663,0.0001925,30]
[338335042,1726507847308,-3000.0,0.0001925,2]
[338335043,1726507847319,-524.0,0.0001925,2]
[338335044,1726507847328,-150.0,0.0001925,2]
[338335045,1726507847338,-239.0,0.0001925,2]
[338335046,1726507847349,-3000.0,0.0001926,2]
[338335047,1726507847359,-150.0,0.00019269,2]
[338335048,1726507847369,-150.0,0.00019269,2]
[338335049,1726507847378,-213.907,0.00019269,2]
[338335050,1726507847388,-150.472,0.00019269,2]
[338335051,1726507847398,-150.0,0.00019269,2]
[338335052,1726507847407,-150.246,0.00019269,2]
[338335053,1726507847418,-3000.0,0.0001927,2]
[338335054,1726507847428,-3000.0,0.0001928,2]
[338335055,1726507847439,-3000.0,0.0001929,2]
[338335056,1726507847449,-61299.82,0.000193,2]
[338335057,1726507847459,-105763.92,0.000193,2]
[338335058,1726507847468,-151.0,0.000193,2]
[338335059,1726507847477,-151.0,0.000193,2]
[338335060,1726507847487,-151.0,0.000193,2]
[338335061,1726507847496,-296.819053,0.000193,2]
[338335062,1726507847507,-20000.0,0.000193,30]
[338335063,1726507847516,-151.0,0.000193,2]
[338335064,1726507847526,-151.0,0.000193,2]
[338335065,1726507847537,-498.077456,0.000193,2]
[338335066,1726507847547,-498.077456,0.000193,2]
[338335067,1726507847560,-498.077456,0.000193,2]
[338335068,1726507847571,-498.077456,0.000193,2]
[338335069,1726507847582,-175.1851,0.000193,2]
[338335070,1726507847593,-175.1851,0.000193,2]
[338335071,1726507847602,-175.1851,0.000193,2]
[338335072,1726507847613,-175.1851,0.000193,2]
[338335073,1726507847623,-151.0,0.000193,2]
[338335074,1726507847635,-151.0,0.000193,2]
[338335075,1726507847645,-252.662041,0.000193,2]
[338335076,1726507847654,-151.0,0.000193,2]
[338335077,1726507847664,-151.0,0.000193,2]
[338335078,1726507847673,-151.0,0.000193,2]
[338335079,1726507847683,-151.0,0.000193,2]
[338335080,1726507847693,-151.0,0.000193,2]
[338335081,1726507847703,-151.0,0.000193,2]
[338335082,1726507847713,-175.183051,0.000193,2]
[338335083,1726507847724,-175.183051,0.000193,2]
[338335084,1726507847735,-175.183051,0.000193,2]
[338335085,1726507847747,-175.183051,0.000193,2]
[338335086,1726507847759,-151.0,0.000193,2]
[338335087,1726507847770,-151.0,0.000193,2]
[338335088,1726507847783,-1330.806637,0.000193,2]
[338335089,1726507847795,-1330.806637,0.000193,2]
[338335090,1726507847805,-1330.806637,0.000193,2]
[338335091,1726507847814,-1330.806637,0.000193,2]
[338335092,1726507847823,-151.0,0.000193,2]
[338335093,1726507847832,-3000.0,0.000193,2]
[338335094,1726507847842,-3000.0,0.0001931,2]
[338335095,1726507847851,-3000.0,0.0001932,2]
[338335096,1726507847861,-3000.0,0.0001933,2]
[338335097,1726507847871,-151.0,0.0001934,2]
[338335098,1726507847880,-265.55811,0.0001934,2]
[338335099,1726507847891,-3000.0,0.0001934,2]
[338335100,1726507847902,-1000.0,0.00019342,2]
[338335101,1726507847913,-151.0,0.0001935,2]
[338335102,1726507847923,-175.1851,0.0001935,2]
[338335103,1726507847932,-175.1851,0.0001935,2]
[338335104,1726507847941,-151.0,0.0001935,2]
[338335105,1726507847951,-151.0,0.0001935,2]
[338335106,1726507848094,-175.183051,0.0001935,2]
[338335107,1726507848104,-175.18305383,0.0001935,2]
[338335108,1726507848113,-151.0,0.0001935,2]
[338335109,1726507848123,-1330.806637,0.0001935,2]
[338335110,1726507848135,-1330.806641,0.0001935,2]
[338335111,1726507848145,-3000.0,0.0001935,2]
[338335112,1726507848155,-3000.0,0.0001936,2]
[338335113,1726507848165,-3000.0,0.0001937,2]
[338335114,1726507848175,-3000.0,0.0001938,2]
[338335115,1726507848186,-3000.0,0.0001939,2]
[338335116,1726507848195,-3000.0,0.000194,2]
[338335117,1726507848205,-498.077456,0.0001941,2]
[338335118,1726507848217,-498.077456,0.0001941,2]
[338335119,1726507848226,-3000.0,0.0001941,2]
[338335120,1726507848235,-3000.0,0.0001942,2]
[338335121,1726507848245,-3000.0,0.0001943,2]
[338335122,1726507848254,-151.0,0.0001944,2]
[338335123,1726507848263,-3035.902653,0.0001944,2]
[338335124,1726507848273,-500.0,0.00019452,2]
[338335125,1726507848282,-2323.43,0.00019452,2]
[338335126,1726507848292,-500.0,0.00019452,2]
[338335127,1726507848301,-500.0,0.00019452,2]
[338335128,1726507848312,-2797.43,0.000195,2]
[338335129,1726507848321,-20000.0,0.000195,30]
[338335130,1726507848331,-1000.0,0.000195,2]
[338335131,1726507848340,-500.0,0.00019589,2]
[338335132,1726507848350,-654.9,0.00019621,2]
[338335133,1726507848359,-793.9123212,0.00019645,2]
[338335134,1726507848369,-20000.0,0.000197,30]
[338335135,1726507848378,-3135.48683509,0.000197,30]
[338335136,1726507849293,-1151.6,0.000197,30]
[338335137,1726507849310,-15712.91316491,0.000197,30]
[338335138,1726507849319,-20000.0,0.000197,30]
[338335139,1726507849328,-151.0,0.000197,2]
[338335140,1726507849338,-151.0,0.000197,2]
[338335141,1726507849347,-151.0,0.000197,2]
[338335142,1726507849357,-500.0,0.00019726,2]
[338335143,1726507849368,-500.0,0.00019726,2]
[338335144,1726507849378,-500.0,0.00019726,2]
[338335145,1726507849387,-2323.43,0.00019726,2]
[338335146,1726507849397,-3492.62677717,0.000198,2]
[338335147,1726507849407,-654.9,0.0001983,2]
[338335148,1726507849417,-500.0,0.00019863,2]
[338335149,1726507849426,-500.0,0.00019863,2]
[338335150,1726507849436,-500.0,0.00019863,2]
[338335151,1726507849446,-500.0,0.00019863,2]
[338335152,1726507849455,-11271.542159,0.00019863,2]
[338335153,1726507849465,-2732.99275536,0.00019897,2]
[338335154,1726507849472,-160.0,0.0001994,2]
[338335155,1726507849481,-360.71459997,0.00019973,2]
[338335156,1726507849490,-500.0,0.00019973,2]
[338335157,1726507849500,-500.0,0.00019973,2]
[338335158,1726507849509,-150.0,0.00019973,2]
[338335159,1726507849520,-299.35495513,0.00019973,2]
[338335160,1726507849531,-500.0,0.00019973,2]
[338335161,1726507849543,-151.4479808,0.00019973,2]
[338335162,1726507849552,-500.0,0.00019973,2]
[338335163,1726507849563,-294533.0,0.0001999,2]
[338335164,1726507849574,-151.0,0.0001999,2]
[338335165,1726507849583,-230.2,0.0001999,2]
[338335166,1726507849743,-498.077456,0.0001999,2]
[338335167,1726507849754,-498.077456,0.0001999,2]
[338335168,1726507849763,-1440.9620546,0.00019999,2]
[338335169,1726507849774,-21178.59780625,0.0002,2]
[338335170,1726507849787,-320.91489999,0.0002,2]
[338335171,1726507849797,-2856.05932576,0.0002,10]
[338335172,1726507849806,-2323.43,0.0002,2]
[338335173,1726507849817,-184.5,0.0002,2]
[338335174,1726507849831,-1000.0,0.0002,20]
[338335175,1726507849843,-5000.0,0.0002,5]
[338335176,1726507849854,-53403.27443848,0.0002,2]
[338335177,1726507849864,-10093.5074596,0.0002,2]
[338335178,1726507849873,-139971.1777508,0.0002,2]
[338335179,1726507849882,-348.17837644,0.0002,2]
[338335180,1726507849891,-318.59891212,0.0002,2]
[338335181,1726507849901,-47938.13434531,0.0002,2]
[338335182,1726507850340,-500.0,0.00017964,2]
[338335183,1726507850349,-179.29611121,0.00017964,2]
[338335184,1726507850359,-500.0,0.00017964,2]
[338335185,1726507850368,-500.0,0.00017964,2]
[338335186,1726507850378,-518.03470199,0.00017964,2]
[338335187,1726507850387,-178.30279691,0.00017964,2]
[338335188,1726507850397,-500.0,0.00017964,2]
[338335189,1726507850406,-500.0,0.00017964,2]
[338335190,1726507850416,-358.24293476,0.00017964,2]
[338335191,1726507850425,-440.71840129,0.00017964,2]
[338335192,1726507859620,157.0,0.00013699,2]
[338335194,1726507953381,178.33458884,0.0001401,2]
[338335198,1726508407561,160.239836,0.00013699,2]
[338335200,1726508833161,-239.565621,0.00015546,2]
[338335201,1726508833183,-300.0,0.00015817,2]
[338335202,1726508833206,-300.0,0.00015817,2]
[338335203,1726508833228,-631.10305263,0.00015818,2]
[338335204,1726508844619,-24268.89694737,0.00015818,2]
[338335205,1726508844642,-168.053914,0.00015905,2]
[338335206,1726508844663,-168.053914,0.00015968,2]
[338335207,1726508844684,-168.053914,0.00016032,2]